bitfinex/quotes_ETHUSD_20250603
["timestamp","ask_amount","ask_price","bid_price","bid_amount"]
[1748915115047,0.48731,2636.6,2636.1,0.02]
[1748915115348,3.79290726,2636.5,2636.1,0.02]
[1748915115544,3.79295902,2636.5,2636.1,0.02]
[1748915115764,0.8341,2636.4,2636.1,0.02]
[1748915115903,4.072,2636.3,2636.1,0.02]
[1748915116243,4.94191519,2636.3,2636.1,0.02]
[1748915116946,4.07,2636.2,2636.1,8.02]
[1748915117956,4.07,2636.2,2636.1,0.02]
[1748915119242,7.86333889,2636.2,2636.1,0.02]
[1748915119807,4.07,2636.2,2636.1,0.02]
[1748915120006,0.8341,2636.4,2636.1,0.02]
[1748915120255,7.46309622,2637.8,2636.3,8.0]
[1748915120256,3.79183411,2637.3,2636.3,8.0]
[1748915120405,4.068,2637.1,2636.5,18.68400252]
[1748915120606,0.8513,2637.4,2636.8,6.89121086]
[1748915120857,0.8513,2637.4,2637.0,8.0]
[1748915121071,0.8513,2637.4,2637.1,3.79201916]
[1748915121370,4.6429165,2637.4,2637.0,8.0]
[1748915121674,5.89364084,2637.4,2637.0,8.0]
[1748915123553,0.8324,2637.7,2637.2,8.0]
[1748915123754,7.85834361,2637.6,2637.2,8.0]
[1748915124164,3.79155524,2637.5,2637.2,8.0]
[1748915124366,0.8535,2638.2,2637.4,6.89121086]
[1748915124685,7.85960762,2638.8,2638.2,8.0]
[1748915124858,4.66313435,2638.7,2638.2,8.0]
[1748915125199,0.8279,2638.5,2637.1,0.31204455]
[1748915125373,0.8279,2637.7,2637.1,8.0]
[1748915125700,4.61868571,2638.0,2637.4,8.0]
[1748915125860,4.088,2637.9,2637.4,8.0]
[1748915126057,8.37053401,2637.9,2637.3,6.82023345]
[1748915126253,8.37053401,2637.9,2637.3,10.61197253]
[1748915126468,4.57959,2637.9,2637.1,3.79194824]
[1748915126666,3.79113362,2637.8,2637.1,3.79194824]
[1748915127585,0.49159,2637.9,2637.3,3.79165808]
[1748915127762,4.085,2637.7,2637.0,6.89121086]
[1748915128146,4.085,2637.7,2637.1,11.79190942]
[1748915128653,4.085,2637.7,2637.1,8.0]
[1748915128852,0.49159,2637.9,2637.3,3.79166193]
[1748915129093,0.8279,2638.0,2637.7,11.79113194]
[1748915129353,4.9119,2638.0,2637.7,8.0]
[1748915129549,0.8279,2638.0,2637.7,8.0]
[1748915129748,4.9109,2638.0,2637.7,8.0]
[1748915130050,4.9109,2638.0,2637.5,8.0]
[1748915130364,3.7914148,2637.6,2636.9,1.134]
[1748915130562,4.084,2637.6,2636.9,1.134]
[1748915130759,0.49109,2637.9,2637.1,8.0]
[1748915131097,8.70175547,2638.0,2637.4,8.0]
[1748915131296,0.87017555,2637.9,2637.4,8.0]
[1748915131612,4.9119,2638.0,2637.7,8.0]
[1748915131813,3.79098739,2637.9,2637.4,8.0]
[1748915132024,4.9119,2638.0,2637.1,8.0]
[1748915132226,3.791123,2637.8,2637.1,11.79195234]
[1748915132496,4.9119,2638.0,2637.4,8.0]
[1748915132658,0.8279,2638.0,2637.6,6.89121086]
[1748915132858,0.8414,2638.6,2637.9,6.89121086]
[1748915133056,0.8414,2638.6,2638.1,8.0]
[1748915133396,0.8414,2638.6,2637.9,6.89121086]
[1748915133397,0.8414,2638.6,2638.0,3.7906563]
[1748915133558,4.63128953,2638.6,2637.9,14.89121086]
[1748915133760,0.8414,2638.6,2638.2,6.89121086]
[1748915133954,0.02,2638.9,2638.0,8.8044]
[1748915133955,0.8614,2638.9,2638.5,10.68115311]
[1748915134160,0.48505891,2638.9,2638.5,6.89121086]
[1748915134358,0.02,2638.9,2638.7,0.8044]
[1748915134601,0.02,2638.9,2638.8,14.89121086]
[1748915134983,0.02,2638.9,2638.4,6.89121086]
[1748915135176,3.78976829,2638.7,2638.2,8.0]
[1748915135373,4.111,2638.9,2638.2,8.0]
[1748915135562,4.63115101,2638.7,2638.2,8.0]
[1748915135895,0.8414,2638.7,2638.4,8.0]
[1748915136095,0.02,2638.9,2638.8,11.78960133]
[1748915136271,0.02,2638.9,2638.8,8.0]
[1748915138168,0.02,2638.9,2638.8,11.78960133]
[1748915138704,0.02,2638.9,2638.8,12.33960133]
[1748915139702,0.02,2638.9,2638.8,8.0]
[1748915140267,0.02,2638.9,2638.8,3.78960133]
[1748915140570,0.02,2638.9,2638.6,8.0]
[1748915141585,0.02,2638.9,2638.6,11.78987155]
[1748915142000,0.02,2638.9,2638.6,8.0]
[1748915143532,0.02,2638.9,2638.8,3.78960133]
[1748915143713,0.02,2638.9,2638.8,10.68081219]
[1748915144044,0.02,2638.9,2638.8,6.89121086]
[1748915144315,0.02,2638.9,2638.8,10.68081219]
[1748915145417,0.02,2638.9,2638.8,6.89121086]
[1748915145736,0.02,2638.9,2638.5,6.89121086]
[1748915146062,3.78969127,2638.8,2638.2,11.49568738]
[1748915146220,0.84716283,2638.8,2638.1,1.131]
[1748915146523,3.79019621,2638.4,2638.1,8.0]
[1748915146687,0.02,2638.9,2638.8,3.78960133]
[1748915146884,0.02,2638.9,2638.8,12.33960133]
[1748915147828,0.02,2638.9,2638.8,13.14860133]
[1748915148187,0.02,2638.9,2638.8,12.59860133]
[1748915149331,0.02,2638.9,2638.8,8.809]
[1748915149627,0.02,2638.9,2638.8,11.78960133]
[1748915150004,0.02,2638.9,2638.6,6.89121086]
[1748915150415,1.23213378,2638.9,2638.2,1.13]
[1748915150617,0.02,2638.9,2638.4,3.79017586]
[1748915150802,0.02,2638.9,2638.6,6.89121086]
[1748915151202,0.02,2638.9,2638.0,15.0]
[1748915151203,0.02,2638.9,2638.0,23.88461086]
[1748915151386,0.8794,2638.7,2638.1,3.79048923]
[1748915151587,4.66926633,2638.7,2638.1,3.79048923]
[1748915151788,0.8794,2638.7,2638.1,3.7905801]
[1748915152091,7.90792229,2638.6,2638.1,8.0]
[1748915152284,4.118,2638.6,2638.0,15.0]
[1748915152591,3.79060687,2638.1,2638.0,15.0]
[1748915153146,4.64130687,2638.1,2638.0,15.0]
[1748915153791,0.8507,2638.1,2638.0,15.0]
[1748915154848,4.121,2638.2,2638.0,15.0]
[1748915155439,0.8453,2638.4,2638.0,15.0]
[1748915155648,4.119,2638.3,2638.0,15.0]
[1748915155997,1.35699006,2638.7,2638.1,3.7904728]
[1748915156190,4.118,2638.6,2638.1,3.79060687]
[1748915156386,4.118,2638.6,2638.0,25.68190376]
[1748915156644,0.8881,2638.7,2638.0,21.89121086]
[1748915156935,3.78998484,2638.6,2638.0,21.89121086]
[1748915157136,7.90698484,2638.6,2638.0,25.68193434]
[1748915157303,0.8881,2638.7,2638.0,21.89121086]
[1748915157490,0.8881,2638.7,2638.3,6.89121086]
[1748915157841,0.02,2638.9,2638.7,3.78974495]
[1748915158135,0.02,2638.9,2638.6,10.68103721]
[1748915159252,0.02,2638.9,2638.6,6.89121086]
[1748915159558,0.02,2638.9,2638.6,10.68106952]
[1748915159754,0.02,2638.9,2638.8,3.78960133]
[1748915160618,0.8692,2639.9,2638.8,13.57389192]
[1748915160797,0.8692,2639.9,2639.4,6.89121086]
[1748915161135,3.78828612,2639.8,2639.4,6.89121086]
[1748915161429,4.65728414,2639.9,2639.5,8.0]
[1748915161638,3.78818947,2639.8,2639.5,8.0]
[1748915161812,0.8692,2639.9,2639.5,8.0]
[1748915161993,0.02,2639.9,2639.5,8.0]
[1748915162190,0.02,2639.9,2639.8,6.89121086]
[1748915162621,0.02,2639.9,2639.8,14.89121086]
[1748915163228,0.02,2639.9,2639.8,18.67937663]
[1748915163591,0.02,2639.9,2639.8,14.89121086]
[1748915163795,0.40079074,2639.9,2639.6,8.0]
[1748915163998,4.61819741,2639.8,2639.3,8.0]
[1748915164235,4.61819741,2639.8,2638.9,6.89121086]
[1748915164236,4.941,2639.8,2638.9,6.89121086]
[1748915164536,0.83,2639.0,2638.3,6.89121086]
[1748915164737,4.944,2639.0,2638.8,3.78949231]
[1748915164908,3.78888624,2639.3,2638.9,8.0]
[1748915165118,0.46147862,2639.2,2638.9,8.0]
[1748915165635,0.46147862,2639.2,2638.8,3.78951076]
[1748915165953,0.46147862,2639.2,2638.6,6.89121086]
[1748915165954,1.22669074,2639.9,2639.5,3.78849885]
[1748915166118,8.75605487,2639.9,2639.3,14.89121086]
[1748915166299,8.75605487,2639.9,2639.3,18.68007044]
[1748915166501,3.78818254,2639.8,2639.3,14.89121086]
[1748915166724,8.75598084,2639.9,2639.3,18.68008411]
[1748915166934,4.9659,2639.9,2639.5,3.78850836]
[1748915167143,4.9659,2639.9,2639.4,8.0]
[1748915167352,4.9659,2639.9,2639.4,11.78872474]
[1748915167654,5.84128156,2639.9,2639.0,6.89121086]
[1748915167943,3.78880243,2639.4,2639.0,6.89121086]
[1748915168144,4.119,2639.5,2639.1,8.0]
[1748915168446,3.78885741,2639.4,2638.8,3.78959042]
[1748915168744,7.90760336,2639.5,2638.7,14.89121086]
[1748915168745,4.63183017,2639.3,2638.7,14.89121086]
[1748915168951,3.78919225,2639.1,2638.7,14.89121086]
[1748915169149,0.46318302,2639.2,2638.7,14.89121086]
[1748915169322,3.78928247,2639.1,2638.4,11.82729523]
[1748915169527,4.116,2639.1,2638.5,11.78999101]
[1748915169731,4.9589,2639.3,2639.1,8.0]
[1748915170053,4.116,2639.3,2639.1,11.78914329]
[1748915170250,4.116,2639.3,2639.1,8.0]
[1748915170628,4.116,2639.4,2639.1,8.0]
[1748915170835,5.37081638,2639.4,2639.1,8.0]
[1748915171040,4.116,2639.4,2639.1,11.78908879]
[1748915171218,4.115,2639.5,2639.0,8.0]
[1748915171417,3.78873986,2639.4,2638.6,8.0]
[1748915171627,3.78902381,2639.3,2638.7,3.78974495]
[1748915171818,0.8551,2639.6,2638.8,3.78951125]
[1748915171819,4.115,2639.2,2638.8,3.78951125]
[1748915172549,4.113,2639.3,2638.8,3.78951125]
[1748915172750,4.90317482,2639.3,2638.8,3.78951125]
[1748915172953,3.7893183,2639.0,2638.6,8.0]
[1748915173152,4.6809183,2639.0,2638.6,8.0]
[1748915173325,3.78951894,2638.9,2638.6,8.0]
[1748915173530,0.8916,2639.0,2638.6,8.0]
[1748915173727,0.8323,2639.3,2639.0,8.0]
[1748915173931,5.40539296,2639.3,2638.9,8.0]
[1748915174126,9.19428454,2639.3,2638.9,8.0]
[1748915174448,5.40539296,2639.3,2638.9,8.0]
[1748915174623,0.8323,2639.7,2639.2,3.78902697]
[1748915174823,4.9423,2639.7,2639.3,8.0]
[1748915175058,4.9423,2639.7,2638.9,6.70365491]
[1748915175233,3.7886066,2639.5,2638.9,18.49306742]
[1748915175550,3.7886066,2639.5,2638.6,0.55]
[1748915175551,1.25192407,2639.5,2638.6,8.8222]
[1748915175737,3.7891705,2639.2,2638.6,8.0]
[1748915176049,3.7891705,2639.2,2638.6,3.78987925]
[1748915176420,3.7891705,2639.2,2638.7,8.0]
[1748915176718,0.8102,2639.5,2638.7,8.0]
[1748915176914,0.8102,2639.5,2638.6,8.0]
[1748915177110,0.8102,2639.5,2639.0,11.78926951]
[1748915177310,0.45987625,2639.4,2639.0,11.78926951]
[1748915177515,0.45987625,2639.4,2639.0,8.0]
[1748915177958,4.24862473,2639.4,2639.0,8.0]
[1748915179551,4.2486401,2639.4,2639.0,8.0]
[1748915179752,4.103,2639.7,2639.4,8.0]
[1748915180255,0.8753,2639.8,2639.4,3.78870871]
[1748915180416,0.02,2639.9,2639.6,3.78836317]
[1748915180619,0.02,2639.9,2639.4,3.78873986]
[1748915180620,0.02,2639.9,2639.4,0.03788466]
[1748915180846,0.02,2639.9,2639.6,8.0]
[1748915181253,0.02,2639.9,2639.6,11.78845279]
[1748915181451,0.02,2639.9,2639.7,11.78826246]
[1748915181652,0.02,2639.9,2639.8,3.78816577]
[1748915181819,0.02,2639.9,2639.8,11.78816577]
[1748915182016,0.02,2640.9,2640.3,3.78734225]
[1748915182257,0.52021,2640.9,2640.4,8.0]
[1748915182562,0.52021,2640.9,2640.4,11.78721944]
[1748915183459,0.02,2640.9,2640.5,3.78715496]
[1748915183768,0.02,2640.9,2640.4,8.0]
[1748915183955,0.02,2640.9,2640.8,8.0]
[1748915184158,0.02,2640.9,2640.4,11.78725639]
[1748915184359,0.02,2640.9,2640.8,11.78673129]
[1748915184727,0.02,2640.9,2640.8,13.20463129]
[1748915185123,0.02,2640.9,2640.8,12.65463129]
[1748915186761,0.02,2640.9,2640.8,13.20463129]
[1748915189000,0.02,2640.9,2640.8,17.20463129]
[1748915189200,0.02,2640.9,2640.8,27.20463129]
[1748915189498,0.97913048,2641.3,2641.2,3.7861578]
[1748915189712,0.97913048,2641.3,2641.2,19.85701271]
[1748915190463,1.90072743,2642.9,2641.7,1.8353655]
[1748915190686,1.90072743,2642.9,2641.6,0.51568116]
[1748915190687,7.60979093,2643.6,2643.5,14.33286362]
[1748915190899,1.62067137,2644.0,2643.8,4.33243437]
[1748915191099,1.62067137,2644.0,2643.8,27.58071056]
[1748915191261,1.62067137,2644.0,2643.8,24.58608928]
[1748915191461,1.62067137,2644.0,2643.8,26.74968928]
[1748915191777,1.62067137,2644.0,2643.8,26.80538928]
[1748915191979,1.34509433,2644.0,2643.9,11.78229131]
[1748915192166,0.97672976,2644.0,2643.9,12.33229131]
[1748915192365,0.97672976,2644.0,2643.9,11.78229131]
[1748915192607,0.97672976,2644.0,2643.9,8.0]
[1748915192911,0.97672976,2644.0,2643.9,12.33229131]
[1748915193080,0.97672976,2644.0,2643.9,12.38829131]
[1748915193266,0.97672976,2644.0,2643.9,16.72029131]
[1748915193880,0.97672976,2644.0,2643.9,11.78229131]
[1748915194673,0.97672976,2644.0,2643.9,8.0]
[1748915195012,0.97672976,2644.0,2643.6,6.70365491]
[1748915195510,0.97672976,2644.0,2643.7,8.0]
[1748915195684,0.97672976,2644.0,2643.2,6.70365491]
[1748915195886,0.53177298,2643.9,2643.4,3.78300217]
[1748915196272,0.53177298,2643.9,2643.5,0.34320047]
[1748915196604,0.53177298,2643.9,2643.5,0.55]
[1748915196906,0.97672976,2644.0,2643.9,0.19733203]
[1748915197929,7.72308067,2644.4,2644.3,11.78171916]
[1748915198075,7.83637041,2645.1,2644.8,18.48465914]
[1748915198266,7.83637041,2645.1,2644.8,32.76393814]
[1748915198466,7.83637041,2645.1,2645.0,12.33071833]
[1748915198705,0.02,2645.9,2645.2,12.60914548]
[1748915198878,0.02,2645.9,2645.2,25.04067131]
[1748915199413,0.02,2645.9,2645.2,25.38734385]
[1748915199707,0.02,2645.9,2645.2,35.38734385]
[1748915199925,0.02,2645.9,2645.7,4.32971803]
[1748915200212,0.02,2645.9,2645.7,19.34889722]
[1748915200510,0.02,2645.9,2645.7,15.01917919]
[1748915200706,0.02,2645.9,2645.7,14.70365491]
[1748915200897,8.83760617,2645.8,2645.7,8.0]
[1748915201293,7.94966015,2645.8,2645.7,14.70365491]
[1748915201504,7.94966015,2645.8,2644.0,3.78209323]
[1748915201833,11.72932989,2645.8,2645.3,6.70365491]
[1748915201980,11.72928477,2645.8,2645.4,0.34690093]
[1748915202173,11.72928477,2645.8,2645.3,6.70365491]
[1748915202496,7.94966015,2645.8,2645.5,8.0]
[1748915202710,11.36099295,2645.8,2645.3,6.70365491]
[1748915202899,11.36099295,2645.8,2645.4,8.0]
[1748915202900,3.77976947,2645.7,2645.4,8.0]
[1748915203094,7.58141669,2645.8,2645.4,8.0]
[1748915203324,11.36101571,2645.8,2645.4,8.0]
[1748915203515,9.27249843,2645.8,2645.4,0.31556006]
[1748915203715,9.27249843,2645.8,2645.5,8.0]
[1748915203911,9.27249843,2645.8,2645.6,0.31553621]
[1748915204114,7.58141669,2645.8,2645.6,7.01919112]
[1748915204312,7.58141669,2645.8,2645.6,0.31553621]
[1748915204686,7.58141669,2645.8,2645.7,0.34709458]
[1748915204928,7.58141669,2645.8,2645.7,0.31552428]
[1748915205488,11.99841669,2645.8,2645.7,0.31552428]
[1748915205720,13.66916817,2645.8,2645.7,0.31552428]
[1748915206226,13.66116817,2645.8,2645.7,0.31552428]
[1748915206398,17.44074334,2645.8,2645.7,0.31552428]
[1748915208083,9.25216817,2645.8,2645.7,0.31552428]
[1748915208489,13.65116817,2645.8,2645.7,0.31552428]
[1748915208689,11.98041669,2645.8,2645.7,0.31552428]
[1748915209207,11.97641669,2645.8,2645.7,4.09524231]
[1748915209384,7.58141669,2645.8,2645.7,0.31552428]
[1748915209590,7.58141669,2645.8,2645.7,4.09524231]
[1748915209786,7.58141669,2645.8,2645.7,0.31552428]
[1748915210026,7.58141669,2645.8,2645.7,4.09524231]
[1748915210240,0.02,2645.9,2645.8,13.77957517]
[1748915210433,0.02,2645.9,2645.8,22.64508753]
[1748915210933,0.02,2645.9,2645.8,28.34008753]
[1748915211151,0.02,2645.9,2645.8,18.34008753]
[1748915211601,0.02,2645.9,2645.8,8.31551236]
[1748915211802,0.02,2645.9,2645.8,4.47398753]
[1748915212016,0.02,2645.9,2645.8,8.09508753]
[1748915212308,0.02,2645.9,2645.8,0.31551236]
[1748915212513,0.02,2645.9,2645.4,8.38455491]
[1748915212731,0.02,2645.9,2645.2,6.70365491]
[1748915212946,5.2126,2645.8,2645.3,4.15912111]
[1748915213141,5.2126,2645.8,2645.4,4.0]
[1748915213341,5.2126,2645.8,2644.9,0.3789]
[1748915213563,3.77983404,2645.7,2645.1,3.78056649]
[1748915213874,0.8992434,2645.6,2645.2,4.12808979]
[1748915214168,4.39,2645.5,2645.2,0.34769964]
[1748915214712,0.999,2645.3,2645.2,0.34769964]
[1748915214911,4.77928957,2645.3,2645.2,0.34769964]
[1748915215911,4.77928957,2645.3,2645.2,0.69559279]
[1748915216248,6.0738299,2645.3,2645.2,0.34769964]
[1748915216652,6.0462299,2645.3,2645.2,0.34769964]
[1748915216851,4.70008844,2644.7,2643.9,3.78228641]
[1748915217061,4.70008844,2644.7,2643.8,3.78240825]
[1748915217062,3.41309066,2644.5,2643.8,3.78240825]
[1748915217214,3.7816067,2644.4,2643.7,3.78253909]
[1748915217414,3.78148144,2644.5,2643.8,3.78239992]
[1748915217751,4.381,2644.6,2643.6,8.35565491]
[1748915217946,4.376,2644.5,2644.2,3.78185195]
[1748915218168,4.376,2644.5,2643.6,16.35565491]
[1748915218468,4.90549,2644.5,2643.8,8.0]
[1748915218615,4.90549,2644.5,2643.7,4.0]
[1748915218616,0.9204,2644.3,2643.7,4.0]
[1748915218816,0.9204,2644.3,2644.1,3.78188159]
[1748915219038,5.2994,2644.3,2643.7,7.78256025]
[1748915219338,9.08122259,2644.3,2643.7,4.0]
[1748915219569,5.2994,2644.3,2643.4,3.78297893]
[1748915219772,0.9204,2643.8,2643.1,3.80343333]
[1748915220075,8.16459813,2643.7,2643.1,4.02]
[1748915220244,4.382,2643.7,2643.1,4.02]
[1748915220444,3.7828767,2643.5,2643.1,0.02]
[1748915220669,3.78319559,2643.3,2643.1,0.02]
[1748915220856,3.7828767,2643.5,2643.1,0.02]
[1748915221052,4.38,2643.4,2643.1,0.02]
[1748915221257,8.1630506,2643.4,2643.1,0.02]
[1748915221483,4.38,2643.4,2643.1,0.02]
[1748915221682,0.9204,2643.8,2643.1,0.02]
[1748915222176,0.37104937,2645.3,2643.1,0.02]
[1748915222177,0.9986,2644.5,2643.6,3.78260208]
[1748915222481,0.9986,2644.5,2643.2,8.0]
[1748915222482,3.7823914,2643.9,2643.2,8.0]
[1748915222660,3.7823914,2643.9,2643.3,3.78306266]
[1748915222980,8.15920597,2644.0,2643.3,3.78306266]
[1748915223273,3.78189799,2644.2,2643.5,3.78276225]
[1748915223476,8.15503999,2644.1,2643.5,3.78276225]
[1748915223639,0.9986,2644.4,2643.4,3.78299075]
[1748915223839,3.78197975,2644.2,2643.2,8.0]
[1748915224040,3.78173608,2644.3,2643.2,8.0]
[1748915224242,0.9986,2644.4,2643.6,8.0]
[1748915224467,3.77976682,2645.7,2643.6,8.0]
[1748915224468,0.9279,2645.5,2644.0,8.0]
[1748915224676,0.9279,2644.8,2644.0,8.0]
[1748915224877,4.376,2644.7,2643.6,3.78272053]
[1748915225092,4.376,2644.7,2643.9,8.0]
[1748915225093,3.78181769,2644.3,2643.9,8.0]
[1748915225393,0.9279,2644.2,2643.3,3.78314985]
[1748915225597,3.78205231,2644.1,2643.4,8.0]
[1748915225741,0.9279,2644.2,2643.5,6.70365491]
[1748915225937,0.56070857,2645.4,2643.3,3.7830768]
[1748915225938,0.9575,2645.2,2644.1,3.78200521]
[1748915226176,3.78081764,2645.0,2644.0,8.0]
[1748915226346,0.9575,2645.2,2644.4,3.78151088]
[1748915226548,3.78087116,2644.9,2644.3,3.78160333]
[1748915226886,3.78081488,2645.0,2644.3,3.78171916]
[1748915227092,0.9575,2645.2,2644.6,3.78117099]
[1748915227377,3.78068047,2645.1,2644.5,11.78138161]
[1748915227752,0.85185795,2645.1,2644.4,8.0]
[1748915227952,0.908,2645.0,2644.1,1.302]
[1748915228153,3.78124858,2644.7,2644.1,1.302]
[1748915228355,0.908,2644.5,2644.1,1.302]
[1748915228558,0.908,2644.5,2644.1,5.08386316]
[1748915228771,0.85185795,2645.1,2644.2,0.03781946]
[1748915228772,0.908,2644.8,2644.2,0.03781946]
[1748915229081,0.908,2644.8,2644.3,3.78163899]
[1748915229272,0.908,2644.8,2644.4,3.78153538]
[1748915229577,0.908,2645.2,2644.6,8.0]
[1748915229784,0.908,2645.2,2644.6,3.78129017]
[1748915230183,0.908,2645.2,2644.5,8.0]
[1748915230390,4.72218834,2645.8,2645.0,3.78071833]
[1748915230681,0.9426,2645.8,2645.5,3.77999637]
[1748915231062,0.9426,2645.8,2645.3,3.78022791]
[1748915231262,0.9426,2645.8,2645.4,8.0]
[1748915232214,0.9426,2645.8,2645.4,11.78014319]
[1748915232421,0.9426,2645.8,2645.4,8.0]
[1748915233157,0.9426,2645.8,2645.4,11.78011016]
[1748915233358,0.9426,2645.8,2645.5,3.77994604]
[1748915233685,0.02,2645.9,2645.8,26.26269917]
[1748915233893,0.02,2645.9,2645.8,12.32957517]
[1748915234057,0.02,2645.9,2645.8,12.32457517]
[1748915234258,0.9098,2646.0,2645.9,5.02713232]
[1748915234458,0.9098,2646.0,2645.9,5.79313232]
[1748915235187,0.9098,2646.0,2645.9,6.34313232]
[1748915235384,0.9098,2646.0,2645.9,3.8172195]
[1748915235753,0.9098,2646.0,2645.9,3.77943232]
[1748915236198,0.9098,2646.0,2645.9,12.47713232]
[1748915236403,0.9098,2646.0,2645.9,13.02713232]
[1748915236976,0.9098,2646.0,2645.9,12.47713232]
[1748915237481,0.9098,2646.0,2645.9,27.53878723]
[1748915237679,0.9098,2646.0,2645.9,33.24778723]
[1748915237863,0.9098,2646.0,2645.9,22.73613232]
[1748915238062,0.9098,2646.0,2645.9,23.73078723]
[1748915238263,0.9098,2646.0,2645.9,29.43878723]
[1748915238498,0.9098,2646.0,2645.9,39.43878723]
[1748915239007,0.9098,2646.0,2645.9,29.73078723]
[1748915239161,0.9098,2646.0,2645.9,13.79213232]
[1748915239562,0.9098,2646.0,2645.9,8.6977]
[1748915239862,0.9098,2646.0,2645.7,1.315]
[1748915240260,3.77957517,2645.8,2645.7,1.315]
[1748915240464,0.9777,2645.9,2645.4,0.03779719]
[1748915240778,0.9098,2646.0,2645.7,6.70365491]
[1748915240979,0.9098,2646.0,2645.4,9.315]
[1748915241174,0.9098,2646.0,2645.4,8.0]
[1748915241379,0.9098,2646.0,2645.4,3.78002029]
[1748915241590,0.9098,2646.0,2645.5,3.77989131]
[1748915241811,4.68918632,2646.0,2645.4,4.15903353]
[1748915242126,3.77943232,2645.9,2645.3,6.70365491]
[1748915242303,0.9098,2646.0,2645.4,11.78014666]
[1748915242657,4.68915195,2646.0,2645.4,8.0]
[1748915242770,0.9098,2646.0,2645.9,11.77943232]
[1748915245101,0.9098,2646.0,2645.9,8.0]
[1748915245714,0.9098,2646.0,2645.9,11.77943232]
[1748915246519,0.9098,2646.0,2645.9,8.0]
[1748915247027,0.9098,2646.0,2645.9,11.77943232]
[1748915247929,0.9098,2646.0,2645.9,12.32943232]
[1748915248387,0.9098,2646.0,2645.9,14.99243232]
[1748915248788,0.9098,2646.0,2645.9,18.99243232]
[1748915249590,0.9098,2646.0,2645.9,16.32943232]
[1748915250499,0.9098,2646.0,2645.9,22.04143232]
[1748915250895,0.9098,2646.0,2645.9,17.12943232]
[1748915251090,0.9098,2646.0,2645.9,22.83643232]
[1748915251992,0.9098,2646.0,2645.9,17.12943232]
[1748915252435,0.9098,2646.0,2645.9,22.83143232]
[1748915253016,0.9098,2646.0,2645.9,9.89443232]
[1748915253339,0.9098,2646.0,2645.9,17.89443232]
[1748915253721,0.9098,2646.0,2645.9,14.115]
[1748915254031,0.9098,2646.0,2645.9,9.89443232]
[1748915254532,0.9098,2646.0,2645.9,13.89443232]
[1748915254753,0.9098,2646.0,2645.9,8.8]
[1748915255036,0.9098,2646.0,2645.9,8.0]
[1748915255251,0.9098,2646.0,2645.9,11.77943232]
[1748915256295,0.9098,2646.0,2645.9,12.92693232]
[1748915257944,0.9098,2646.0,2645.9,17.81062032]
[1748915258155,0.9098,2646.0,2645.9,12.92693232]
[1748915258354,0.9098,2646.0,2645.9,15.69673232]
[1748915259043,0.29629257,2646.0,2645.9,15.69673232]
[1748915259937,0.29629257,2646.0,2645.9,12.92693232]
[1748915260247,0.29629257,2646.0,2645.9,7.84943232]
[1748915261254,0.29629257,2646.0,2645.9,15.84943232]
[1748915261449,0.29629257,2646.0,2645.9,13.88943232]
[1748915261649,0.8961,2646.4,2646.2,8.0]
[1748915261826,4.96404989,2646.6,2646.2,8.0]
[1748915262025,5.83829026,2646.6,2646.0,8.0]
[1748915262248,4.96404989,2646.6,2646.2,8.0]
[1748915262450,4.96404989,2646.6,2646.4,3.7786724]
[1748915262640,4.96404989,2646.6,2646.2,8.0]
[1748915262837,4.96404989,2646.6,2646.5,8.0]
[1748915263065,4.96404989,2646.6,2646.5,3.77857547]
[1748915263425,4.96404989,2646.6,2646.4,3.77867029]
[1748915263655,4.96404989,2646.6,2646.3,3.77882061]
[1748915264230,4.96404989,2646.6,2646.4,3.77869986]
[1748915264432,4.96404989,2646.6,2646.3,3.77885007]
[1748915264848,5.92944989,2646.6,2646.4,3.77871061]
[1748915265042,5.92944989,2646.6,2646.3,3.77878118]
[1748915265244,5.92944989,2646.6,2646.2,8.0]
[1748915265540,5.92944989,2646.6,2646.2,11.77898777]
[1748915265737,0.59294499,2646.5,2646.1,7.99720307]
[1748915265943,0.59294499,2646.5,2646.0,3.77915116]
[1748915266160,4.93894499,2646.5,2646.1,3.77903814]
[1748915266344,4.93794499,2646.5,2646.2,3.7789878]
[1748915266529,5.92944989,2646.6,2646.5,3.77857547]
[1748915266729,5.92944989,2646.6,2646.3,3.77878492]
[1748915267168,5.92944989,2646.6,2646.0,3.77925154]
[1748915267342,5.92944989,2646.6,2646.0,3.77927426]
[1748915267545,5.308,2646.5,2645.9,0.8]
[1748915267767,1.98820499,2646.4,2646.1,8.0]
[1748915267959,6.33520499,2646.4,2646.1,8.0]
[1748915268263,5.307,2646.4,2646.2,3.7789988]
[1748915268634,0.961,2646.4,2646.2,3.7789988]
[1748915269231,0.961,2646.4,2646.3,3.77886105]
[1748915269862,0.961,2646.4,2646.3,0.8]
[1748915270435,0.961,2646.4,2646.3,4.57886105]
[1748915270681,0.961,2646.4,2646.3,0.8]
[1748915271175,4.96404989,2646.6,2646.3,0.8]
[1748915271176,9.30204989,2646.6,2646.4,3.77871825]
[1748915271378,9.30204989,2646.6,2646.3,4.57881896]
[1748915271536,9.30204989,2646.6,2646.3,0.8]
[1748915271939,4.96404989,2646.6,2646.3,0.8]
[1748915272144,4.96404989,2646.6,2646.4,3.77871825]
[1748915272344,4.96404989,2646.6,2646.3,4.57883628]
[1748915272643,4.96404989,2646.6,2646.4,3.77871825]
[1748915272841,4.96404989,2646.6,2646.5,11.77857547]
[1748915273042,4.96404989,2646.6,2646.5,8.0]
[1748915273481,4.96404989,2646.6,2646.3,0.8]
[1748915273953,4.96404989,2646.6,2646.3,4.57884587]
[1748915274160,4.96404989,2646.6,2646.5,3.77857547]
[1748915274368,4.96404989,2646.6,2646.5,11.77857547]
[1748915274893,4.96404989,2646.6,2646.5,18.48223038]
[1748915275248,4.96404989,2646.6,2646.5,18.86113038]
[1748915275684,4.96404989,2646.6,2646.5,19.41113038]